bitfinex-derivatives/quotes_SOLF0:USTF0_20241230
["timestamp","ask_amount","ask_price","bid_price","bid_amount"]
[1735561729011,12.67569222,194.71,194.65,2.5723]
[1735561729722,12.67569222,194.71,194.67,2.5721]
[1735561729921,3.0,194.73,194.67,2.5721]
[1735561730216,3.0,194.75,194.67,2.5721]
[1735561730415,3.0,194.75,194.63,3.93675744]
[1735561730416,12.67569222,194.75,194.64,6.93782258]
[1735561730720,12.67569222,194.75,194.65,3.93782258]
[1735561730922,12.67569222,194.75,194.64,3.0]
[1735561731115,12.67569222,194.75,194.65,3.93730006]
[1735561731421,12.67569222,194.75,194.64,3.0]
[1735561731620,12.67569222,194.75,194.67,2.5721]
[1735561732323,12.67569222,194.75,194.68,2.5719]
[1735561733420,12.67569222,194.75,194.64,3.0]
[1735561733721,12.67569222,194.75,194.7,2.5717]
[1735561733917,12.67569222,194.75,194.66,3.93775834]
[1735561734123,12.67569222,194.75,194.67,6.51012785]
[1735561734324,12.67569222,194.75,194.64,3.0]
[1735561734518,12.67569222,194.75,194.69,2.5718]
[1735561736323,15.67569222,194.78,194.71,2.5715]
[1735561736519,15.67569222,194.78,194.66,3.93820074]
[1735561736724,15.67569222,194.78,194.67,3.93820074]
[1735561736921,15.67569222,194.78,194.72,2.5713]
[1735561738527,12.67569222,194.78,194.73,2.5713]
[1735561739524,3.0,194.8,194.69,3.0]
[1735561739822,12.67569222,194.81,194.69,3.0]
[1735561739823,12.67569222,194.81,194.76,2.5709]
[1735561740028,12.67569222,194.81,194.71,3.93613366]
[1735561740327,12.67569222,194.81,194.75,2.571]
[1735561740927,12.67569222,194.81,194.71,3.93421683]
[1735561741125,12.67569222,194.81,194.76,2.5709]
[1735561741429,12.67569222,194.81,194.71,3.9334329]
[1735561741628,12.67569222,194.81,194.7,4.6122]
[1735561741828,12.67569222,194.81,194.76,2.5709]
[1735561742033,12.67569222,194.81,194.7,4.6122]
[1735561742329,12.67569222,194.81,194.73,2.5713]
[1735561744735,12.67569222,194.81,194.74,2.5712]
[1735561744935,12.67569222,194.81,194.7,4.6122]
[1735561746721,12.67569222,194.81,194.74,2.5712]
[1735561749937,12.67569222,194.81,194.7,4.6122]
[1735561750331,12.67569222,194.81,194.7,3.0139]
[1735561750634,12.67569222,194.81,194.7,5.5855]
[1735561751032,12.67569222,194.78,194.65,19.6947959]
[1735561751225,12.67569222,194.75,194.65,7.01910368]
[1735561751629,12.67569222,194.75,194.64,28.07641473]
[1735561752235,8.12209256,194.69,194.64,28.07641473]
[1735561752731,8.12209256,194.69,194.64,7.01910368]
[1735561752937,8.12209256,194.69,194.63,2.5726]
[1735561753128,8.12209256,194.69,194.62,8.12209256]
[1735561753329,8.12209256,194.69,194.63,3.94057519]
[1735561753533,8.12209256,194.69,194.64,3.94057519]
[1735561753732,8.12209256,194.69,194.62,10.69479256]
[1735561753933,8.12209256,194.69,194.63,3.9410519]
[1735561754132,8.12209256,194.69,194.64,3.9410519]
[1735561754333,12.69154837,194.71,194.62,2.5727]
[1735561754539,12.69154837,194.71,194.63,3.94428942]
[1735561754838,12.69154837,194.71,194.62,2.5727]
[1735561755035,12.69154837,194.71,194.63,3.94466896]
[1735561755235,12.69154837,194.71,194.61,2.5729]
[1735561755440,12.69154837,194.71,194.62,3.94756226]
[1735561755739,12.69154837,194.71,194.63,3.94756226]
[1735561755933,12.69154837,194.71,194.61,2.5729]
[1735561756133,12.69154837,194.71,194.62,3.94787879]
[1735561756339,12.69154837,194.71,194.63,3.94787879]
[1735561756542,12.69154837,194.71,194.61,2.5729]
[1735561757138,12.69154837,194.71,194.6,2.573]
[1735561757339,12.69154837,194.68,194.61,3.94771304]
[1735561757537,12.69154837,194.68,194.6,2.573]
[1735561757738,12.69154837,194.68,194.61,3.94866759]
[1735561757938,12.69154837,194.68,194.61,2.5729]
[1735561758435,12.69154837,194.68,194.57,7.01910368]
[1735561758436,12.69154837,194.68,194.62,3.94892684]
[1735561758641,12.69154837,194.71,194.63,3.94874558]
[1735561758842,12.69154837,194.74,194.64,3.94874558]
[1735561759042,12.69154837,194.74,194.65,3.94874558]
[1735561759341,12.69154837,194.74,194.66,3.94874558]
[1735561759543,12.69154837,194.74,194.66,2.5722]
[1735561760243,12.69154837,194.74,194.67,3.95042789]
[1735561760444,12.69154837,194.74,194.66,2.5722]
[1735561760646,12.69154837,194.74,194.67,3.95105703]
[1735561760943,12.69154837,194.74,194.66,2.5722]
[1735561761143,12.69154837,194.71,194.62,8.57410368]
[1735561761338,12.69154837,194.71,194.63,3.95356745]
[1735561761541,3.0,194.7,194.64,3.95356745]
[1735561761739,3.0,194.7,194.61,2.5729]
[1735561761939,3.0,194.7,194.62,3.95601928]
[1735561762247,3.0,194.7,194.63,3.95601928]
[1735561762443,12.69154837,194.68,194.6,46.58190481]
[1735561762644,12.69154837,194.68,194.61,3.95850581]
[1735561762845,12.69154837,194.68,194.62,3.95850581]
[1735561763142,12.69154837,194.68,194.63,3.95850581]
[1735561763344,12.69154837,194.68,194.61,2.5729]
[1735561763547,12.69154837,194.68,194.62,3.9606116]
[1735561763744,12.69154837,194.68,194.63,3.9606116]
[1735561763945,12.69154837,194.68,194.61,2.5729]
[1735561764140,12.69154837,194.68,194.62,3.96055607]
[1735561764445,12.69154837,194.68,194.63,3.96055607]
[1735561764644,12.69154837,194.68,194.57,61.25555318]
[1735561764841,12.69154837,194.68,194.58,3.96257402]
[1735561765042,12.69154837,194.68,194.59,3.96257402]
[1735561765242,12.69154837,194.68,194.6,3.96257402]
[1735561765442,12.69154837,194.68,194.61,6.53547402]
[1735561765642,12.69154837,194.68,194.62,3.96257402]
[1735561765843,12.69154837,194.68,194.63,3.96257402]
[1735561766043,12.69154837,194.68,194.61,2.5729]
[1735561766242,12.69154837,194.68,194.62,3.96371854]
[1735561766448,12.69154837,194.68,194.63,3.96371854]
[1735561766736,12.69154837,194.68,194.61,2.5729]
[1735561766943,12.69154837,194.68,194.62,3.96469912]
[1735561767247,12.69154837,194.68,194.63,3.96469912]
[1735561767447,12.69154837,194.68,194.6,2.573]
[1735561767642,12.69154837,194.68,194.61,3.96517552]
[1735561767839,12.69154837,194.68,194.62,3.96517552]
[1735561768145,12.69154837,194.68,194.63,3.96517552]
[1735561768350,12.69154837,194.68,194.6,2.573]
[1735561768641,12.69154837,194.65,194.61,3.96561986]
[1735561768847,12.69154837,194.62,194.56,7.01910368]
[1735561769047,12.69154837,194.62,194.57,3.96812445]
[1735561769249,12.69154837,194.62,194.58,3.96812445]
[1735561769448,12.69154837,194.62,194.56,7.01910368]
[1735561769647,12.69154837,194.62,194.57,3.9681205]
[1735561769848,12.69154837,194.62,194.58,3.9681205]
[1735561770047,12.69154837,194.62,194.56,7.01910368]
[1735561770347,12.69154837,194.62,194.53,2.5739]
[1735561770544,12.69154837,194.62,194.54,3.96850851]
[1735561770744,12.69154837,194.62,194.55,3.96850851]
[1735561770943,12.69154837,194.62,194.56,3.96850851]
[1735561771144,12.69154837,194.62,194.53,2.5739]
[1735561771347,12.69154837,194.62,194.54,3.96844086]
[1735561771548,12.69154837,194.62,194.55,3.96844086]
[1735561771750,12.69154837,194.62,194.53,2.5739]
[1735561771946,12.69154837,194.62,194.54,3.96652854]
[1735561772146,12.69154837,194.62,194.55,3.96652854]
[1735561772349,12.69154837,194.62,194.53,2.5739]
[1735561772546,12.69154837,194.62,194.54,3.96537037]
[1735561772747,12.69154837,194.62,194.55,3.96537037]
[1735561772947,12.69154837,194.62,194.53,2.5739]
[1735561773153,12.69154837,194.62,194.54,3.96483099]
[1735561773351,12.69154837,194.62,194.55,3.96483099]
[1735561773551,12.69154837,194.62,194.53,2.5739]
[1735561773747,12.69154837,194.62,194.54,3.96291619]
[1735561773947,12.69154837,194.62,194.55,3.96291619]
[1735561774147,12.69154837,194.62,194.53,2.5739]
[1735561774350,12.69154837,194.62,194.54,3.96323989]
[1735561774552,12.69154837,194.62,194.55,3.96323989]
[1735561774853,12.69154837,194.62,194.54,2.5738]
[1735561775844,3.0,194.61,194.54,2.5738]
[1735561776353,8.13071102,194.58,194.54,2.5738]
[1735561777151,8.13071102,194.58,194.51,10.70491102]
[1735561777342,8.13071102,194.56,194.52,3.9603694]
[1735561777547,8.13071102,194.56,194.51,8.13071102]
[1735561777748,8.13071102,194.56,194.52,6.53354869]
[1735561777946,8.13071102,194.56,194.51,8.13071102]
[1735561777947,8.13071102,194.56,194.53,3.95945534]
[1735561778155,8.13071102,194.56,194.51,8.13071102]
[1735561778348,8.13071102,194.56,194.52,3.95960972]
[1735561778544,8.13071102,194.56,194.53,3.95960972]
[1735561778745,8.13071102,194.56,194.51,8.13071102]
[1735561778950,8.13071102,194.56,194.52,3.95896528]
[1735561779251,8.13071102,194.56,194.53,3.95874551]
[1735561779453,8.13071102,194.56,194.48,3.0]
[1735561779653,8.13071102,194.56,194.5,8.13071102]
[1735561779849,8.13071102,194.56,194.51,3.95833183]
[1735561780056,8.13071102,194.56,194.52,3.95833183]
[1735561780354,8.13071102,194.56,194.52,2.574]
[1735561780550,8.13071102,194.56,194.47,8.03803967]
[1735561780749,8.13071102,194.54,194.47,5.08583967]
[1735561781055,8.13071102,194.54,194.47,7.66053967]
[1735561781450,8.13071102,194.52,194.47,7.66053967]
[1735561782254,8.13071102,194.52,194.48,2.5746]
[1735561785659,8.13071102,194.52,194.49,2.5744]
[1735561785954,8.13071102,194.54,194.47,5.08583967]
[1735561786356,8.13071102,194.54,194.48,3.95388799]
[1735561786557,8.13071102,194.54,194.47,5.08583967]
[1735561786759,8.13071102,194.54,194.48,3.95394115]
[1735561786952,8.13071102,194.54,194.47,5.08583967]
[1735561787149,1.4626,194.59,194.5,8.13071102]
[1735561787350,8.13071102,194.57,194.52,2.574]
[1735561787558,8.13071102,194.57,194.5,8.13071102]
[1735561788258,8.13071102,194.57,194.51,3.95400725]
[1735561788458,8.13071102,194.57,194.5,8.13071102]
[1735561788659,8.13071102,194.57,194.51,3.95509732]
[1735561788856,8.13071102,194.57,194.5,8.13071102]
[1735561789057,8.13071102,194.57,194.51,3.95471007]
[1735561789256,8.13071102,194.57,194.52,3.95471007]
[1735561789459,8.13071102,194.55,194.54,2.5737]
[1735561791756,8.13071102,194.55,194.49,2.98]
[1735561791961,8.13071102,194.55,194.53,2.5739]
[1735561792162,8.13071102,194.55,194.49,2.98]
[1735561792363,8.13071102,194.55,194.5,3.95946838]
[1735561792562,8.13071102,194.55,194.51,3.95946838]
[1735561792761,8.13071102,194.55,194.52,3.9612472]
[1735561793063,8.13071102,194.55,194.53,3.9612472]
[1735561793361,8.13071102,194.55,194.48,12.60001102]
[1735561793563,8.13071102,194.55,194.49,3.9642722]
[1735561793754,8.13071102,194.53,194.5,3.9642722]
[1735561793959,2.98,194.55,194.51,3.9642722]
[1735561794253,2.98,194.55,194.47,5.08583967]
[1735561794459,2.98,194.55,194.48,6.54048422]
[1735561794656,8.13071102,194.5,194.49,3.96588422]
[1735561794861,2.98,194.55,194.49,3.96588422]
[1735561795059,8.13071102,194.54,194.5,3.96588422]
[1735561795259,8.13071102,194.54,194.52,2.5741]
[1735561796263,8.13071102,194.54,194.47,5.08583967]
[1735561796466,8.13071102,194.52,194.51,2.5742]
[1735561796660,8.13071102,194.52,194.51,3.9694079]
[1735561796860,8.13071102,194.52,194.47,5.08583967]
[1735561797060,8.13071102,194.5,194.49,2.5745]
[1735561797265,8.13071102,194.5,194.49,3.97132802]
[1735561797460,8.13071102,194.5,194.49,3.97304393]
[1735561797667,8.13071102,194.5,194.47,5.08583967]
[1735561797867,8.13071102,194.5,194.48,3.97312658]
[1735561798068,8.13071102,194.5,194.48,2.5746]
[1735561798267,8.13071102,194.5,194.49,3.97298551]
[1735561798663,8.13071102,194.5,194.43,28.07641473]
[1735561798865,8.13071102,194.5,194.44,3.97324324]
[1735561799064,8.13071102,194.5,194.45,3.97324324]
[1735561799366,8.13071102,194.5,194.47,2.5748]
[1735561799567,8.13071102,194.5,194.48,3.97324324]
[1735561799766,8.13071102,194.5,194.49,3.97324324]
[1735561800462,8.13071102,194.5,194.42,36.20712575]
[1735561800668,8.13071102,194.5,194.43,3.97710764]
[1735561800972,8.13071102,194.5,194.44,3.97710764]
[1735561801169,8.13071102,194.5,194.45,3.97710764]
[1735561801368,8.13071102,194.5,194.46,3.97710764]
[1735561801572,8.13071102,194.5,194.47,3.97710764]
[1735561801760,8.13071102,194.5,194.48,3.97710764]
[1735561801967,8.13071102,194.5,194.45,2.5749]
[1735561802161,8.13071102,194.48,194.46,3.97679392]
[1735561802367,8.13071102,194.48,194.47,3.97679392]
[1735561802569,8.13071102,194.48,194.43,7.01910368]
[1735561802769,8.13071102,194.46,194.44,3.97751873]
[1735561802968,8.13071102,194.44,194.43,7.01910368]
[1735561803465,8.13071102,194.44,194.39,7.01910368]
[1735561803670,8.13071102,194.42,194.4,3.97680435]
[1735561803971,8.13071102,194.42,194.39,7.01910368]
[1735561804171,8.13071102,194.42,194.4,3.97696375]
[1735561804368,8.13071102,194.42,194.39,7.01910368]
[1735561804574,8.13071102,194.42,194.4,6.55186869]
[1735561804771,8.13071102,194.45,194.41,3.97598975]
[1735561805068,4.5364,194.48,194.39,8.13071102]
[1735561805069,8.13071102,194.47,194.42,3.97598975]
[1735561805273,8.13071102,194.47,194.39,8.13071102]
[1735561805573,8.13071102,194.45,194.4,3.97599993]
[1735561805772,8.13071102,194.45,194.41,3.97599993]
[1735561805973,8.13071102,194.43,194.39,2.5757]
[1735561806172,8.13071102,194.43,194.4,3.97844268]
[1735561806372,8.13071102,194.43,194.41,3.97844268]
[1735561806573,8.13071102,194.43,194.39,2.5757]
[1735561806874,8.13071102,194.43,194.4,3.97815587]
[1735561807173,8.13071102,194.43,194.41,3.97815587]
[1735561807364,2.98,194.48,194.42,3.97815587]
[1735561807567,8.13071102,194.46,194.43,6.552274]
[1735561807771,8.13071102,194.46,194.39,8.13071102]
[1735561807964,8.13071102,194.46,194.4,3.97705329]
[1735561808169,8.13071102,194.46,194.41,3.97705329]
[1735561808369,8.13071102,194.46,194.42,3.97705329]
[1735561808570,8.13071102,194.46,194.43,3.97705329]
[1735561808770,8.13071102,194.46,194.39,8.13071102]
[1735561808971,8.13071102,194.46,194.42,2.5753]
[1735561809474,8.13071102,194.46,194.39,8.13071102]
[1735561809776,8.13071102,194.48,194.41,8.13071102]
[1735561809975,8.13071102,194.48,194.42,3.97667872]
[1735561810177,8.13071102,194.5,194.43,12.10738974]
[1735561810372,8.13071102,194.5,194.44,3.97667872]
[1735561810572,8.13071102,194.5,194.45,3.97667872]
[1735561810876,8.13071102,194.5,194.48,2.5745]
[1735561811370,8.13071102,194.5,194.49,3.97446301]
[1735561812070,8.13071102,194.5,194.42,1.5288]
[1735561812270,8.13071102,194.46,194.43,3.97675973]
[1735561812471,2.98,194.5,194.44,3.97675973]
[1735561812774,2.98,194.5,194.4,9.59470368]
[1735561812971,2.98,194.5,194.41,3.9807064]
[1735561813171,2.98,194.5,194.42,3.9807064]
[1735561813368,8.13071102,194.44,194.4,9.59470368]
[1735561813569,8.13071102,194.46,194.42,2.5753]
[1735561813770,8.13071102,194.46,194.43,3.98265888]
[1735561813969,8.13071102,194.46,194.38,13.26291561]
[1735561814177,8.13071102,194.46,194.41,2.5756]
[1735561814377,8.13071102,194.46,194.42,3.98214216]
[1735561814578,8.13071102,194.46,194.38,13.26291561]
[1735561814770,8.13071102,194.44,194.4,2.5756]
[1735561814976,8.13071102,194.44,194.41,3.98321046]
[1735561815176,8.13071102,194.44,194.42,3.98321046]
[1735561815372,8.13071102,194.44,194.4,2.5756]
[1735561815679,8.13071102,194.44,194.41,3.98224413]
[1735561815978,8.13071102,194.46,194.42,3.98224413]
[1735561816180,8.13071102,194.46,194.43,3.98224413]
[1735561816380,1.5337,194.53,194.45,2.575]
[1735561816575,8.13071102,194.48,194.41,2.98]
[1735561816775,8.13071102,194.48,194.42,12.11019225]
[1735561816976,8.13071102,194.5,194.43,3.97948123]
[1735561817279,8.13071102,194.5,194.44,3.97948123]
[1735561817480,8.13071102,194.5,194.45,3.97948123]
[1735561817782,8.13071102,194.5,194.47,2.5747]
[1735561818189,12.71478309,194.53,194.47,2.5747]
[1735561818987,12.71478309,194.53,194.48,3.97802169]
[1735561819193,12.71478309,194.53,194.49,3.97802169]
[1735561819491,12.71478309,194.56,194.49,2.5745]
[1735561819691,12.71478309,194.56,194.46,2.98]
[1735561819892,1.5001,194.61,194.47,3.97735856]
[1735561820091,12.71478309,194.58,194.51,2.5741]
[1735561820294,12.71478309,194.58,194.52,3.97735856]
[1735561820489,12.71478309,194.58,194.47,3.105]
[1735561820693,12.71478309,194.58,194.53,2.5739]
[1735561820894,12.71478309,194.58,194.54,3.97515194]
[1735561821096,12.71478309,194.58,194.47,3.105]
[1735561821296,12.71478309,194.58,194.53,2.5739]
[1735561821485,12.71478309,194.58,194.54,3.97500077]
[1735561821688,12.71478309,194.58,194.55,3.9750449]
[1735561821885,12.71478309,194.58,194.53,2.5739]
[1735561822090,12.71478309,194.58,194.54,3.97495475]
[1735561822294,12.71478309,194.58,194.55,3.97495475]
[1735561822489,12.71478309,194.58,194.53,2.5739]
[1735561822798,12.71478309,194.58,194.54,3.97478933]
[1735561823093,12.71478309,194.58,194.55,3.97478933]
[1735561823290,12.71478309,194.58,194.53,2.5739]
[1735561823597,12.71478309,194.58,194.54,3.97459838]
[1735561823897,12.71478309,194.58,194.55,3.97459838]
[1735561824191,12.71478309,194.58,194.54,2.5738]
[1735561824392,12.71478309,194.61,194.55,3.97401504]
[1735561824592,12.71478309,194.61,194.56,2.5735]
[1735561824991,12.71478309,194.61,194.57,3.97322216]
[1735561825196,12.71478309,194.61,194.58,2.5733]
[1735561825594,12.71478309,194.61,194.6,2.573]
[1735561825794,12.71478309,194.64,194.53,1.5636]
[1735561825994,12.71478309,194.64,194.54,3.97254858]
[1735561826190,12.71478309,194.61,194.55,3.97254858]
[1735561826396,12.71478309,194.61,194.56,3.97254858]
[1735561826596,12.71478309,194.61,194.57,3.97254858]
[1735561826797,12.71478309,194.61,194.56,2.5735]
[1735561826992,12.71478309,194.61,194.57,3.97219441]
[1735561827193,12.71478309,194.61,194.53,1.5636]
[1735561827194,12.71478309,194.61,194.58,3.97219441]
[1735561827389,12.71478309,194.61,194.53,1.5636]
[1735561827595,12.71478309,194.61,194.54,3.97210853]
[1735561827897,12.71478309,194.61,194.55,3.97210853]
[1735561828101,12.71478309,194.61,194.57,2.5734]
[1735561828400,12.71478309,194.61,194.53,1.5636]
[1735561828590,12.71478309,194.61,194.56,2.5735]
[1735561828795,12.71478309,194.61,194.57,3.97197398]
[1735561828996,12.71478309,194.61,194.53,1.5636]
[1735561829188,12.71478309,194.61,194.54,3.97134402]
[1735561829392,12.71478309,194.61,194.55,3.97134402]
[1735561829598,12.71478309,194.61,194.56,3.97134402]
[1735561829794,12.71478309,194.61,194.57,3.97134402]
[1735561829993,12.71478309,194.61,194.55,2.5737]
[1735561830198,12.71478309,194.61,194.56,3.97066548]
[1735561830388,12.71478309,194.61,194.55,2.5737]
[1735561830698,12.71478309,194.61,194.56,3.96972382]
[1735561830991,12.71478309,194.61,194.53,1.5636]
[1735561831193,12.71478309,194.58,194.54,3.96839859]
[1735561831399,12.71478309,194.58,194.49,4.5272]
[1735561831592,12.71478309,194.58,194.5,3.96847049]
[1735561831793,12.71478309,194.58,194.52,2.5741]
[1735561831994,12.71478309,194.58,194.53,3.96847049]
[1735561832195,12.71478309,194.58,194.54,3.96725727]
[1735561832395,12.71478309,194.58,194.49,4.5272]
[1735561832701,12.71478309,194.58,194.5,3.96713915]
[1735561832996,12.71478309,194.61,194.51,3.96713915]
[1735561833208,12.71478309,194.61,194.57,2.5733]
[1735561833805,12.71478309,194.61,194.49,4.5272]
[1735561834003,12.71478309,194.61,194.5,3.96334962]
[1735561834301,12.71478309,194.61,194.51,3.96334962]
[1735561834507,12.71478309,194.61,194.52,3.96334962]
[1735561834802,12.71478309,194.61,194.53,3.96334962]
[1735561835005,12.71478309,194.61,194.54,3.96334962]
[1735561835205,12.71478309,194.58,194.49,1.5472]
[1735561835406,12.71478309,194.58,194.5,3.96479753]
[1735561835700,12.71478309,194.55,194.51,3.96479753]
[1735561835899,12.71478309,194.55,194.47,1.6051]
[1735561836105,12.71478309,194.55,194.48,6.54003225]
[1735561836305,12.71478309,194.55,194.49,3.96553225]
[1735561836507,12.71478309,194.55,194.47,1.6051]
[1735561836703,12.71478309,194.55,194.49,2.5745]
[1735561836901,12.71478309,194.55,194.5,3.96597724]
[1735561837205,12.71478309,194.55,194.51,3.96597724]
[1735561837506,12.71478309,194.55,194.47,1.6051]
[1735561837507,12.71478309,194.55,194.44,1.5747]
[1735561837708,12.71478309,194.55,194.45,3.9661903]
[1735561837903,2.98,194.54,194.46,3.9661903]
[1735561838211,2.98,194.54,194.47,3.9661903]
[1735561838401,2.98,194.54,194.48,3.9661903]
[1735561838601,2.98,194.54,194.47,2.5747]
[1735561839599,2.98,194.54,194.48,3.97084406]
[1735561839803,2.98,194.54,194.47,2.5747]
[1735561840003,2.98,194.54,194.48,3.97026838]
[1735561840202,2.98,194.54,194.47,2.5747]
[1735561840409,2.98,194.54,194.43,48.51644987]
[1735561840410,12.71478309,194.52,194.43,48.51644987]
[1735561840700,12.71478309,194.49,194.44,3.97101366]
[1735561840905,15.69478309,194.49,194.39,28.07641473]
[1735561841107,12.71478309,194.46,194.4,3.97429042]
[1735561841306,12.71478309,194.46,194.41,3.97429042]
[1735561841508,12.71478309,194.46,194.39,28.07641473]
[1735561841708,12.71478309,194.46,194.4,3.974246]
[1735561841899,12.71478309,194.46,194.41,3.974246]
[1735561842100,12.71478309,194.46,194.38,7.70800459]
[1735561842412,12.71478309,194.46,194.39,3.97475919]
[1735561842610,12.71478309,194.46,194.38,7.70800459]
[1735561842806,12.71478309,194.46,194.39,3.97474438]
[1735561843110,12.71478309,194.43,194.34,6.1371]
[1735561843306,15.69478309,194.43,194.35,3.97511156]
[1735561843510,15.69478309,194.43,194.36,3.97511156]
[1735561843807,15.69478309,194.43,194.37,3.97511156]
[1735561844013,15.69478309,194.43,194.34,6.1371]
[1735561844204,15.69478309,194.43,194.35,3.97408088]
[1735561844409,15.69478309,194.43,194.37,2.5761]
[1735561844812,2.98,194.43,194.34,6.1371]
[1735561845008,12.71478309,194.46,194.38,2.5759]
[1735561845214,12.71478309,194.46,194.34,6.1371]
[1735561845415,12.71478309,194.46,194.35,3.97175685]
[1735561845615,12.71478309,194.46,194.36,3.97170864]
[1735561845910,12.71478309,194.46,194.37,3.97170864]
[1735561846115,12.71478309,194.46,194.4,2.5757]
[1735561847618,12.71478309,194.46,194.39,2.5758]
[1735561848020,12.71478309,194.46,194.34,6.1371]
[1735561848316,12.71478309,194.46,194.42,2.5754]
[1735561850217,12.71478309,194.46,194.34,6.1371]
[1735561850417,12.71478309,194.46,194.35,3.96977427]
[1735561850618,12.71478309,194.46,194.36,6.98977427]
[1735561850814,12.71478309,194.46,194.37,3.96977427]
[1735561851020,12.71478309,194.46,194.39,2.5757]
[1735561851221,12.71478309,194.46,194.4,3.96977427]
[1735561851420,12.71478309,194.46,194.39,2.5757]
[1735561851617,12.71478309,194.46,194.4,3.97023021]
[1735561851817,12.71478309,194.46,194.39,2.5757]
[1735561852013,12.71478309,194.46,194.34,3.1571]
[1735561852219,12.71478309,194.43,194.35,3.97068384]
[1735561852419,12.71478309,194.43,194.36,3.97068384]
[1735561852617,12.71478309,194.4,194.31,28.07641473]
[1735561852915,12.71478309,194.37,194.31,28.07641473]
[1735561853225,12.71478309,194.37,194.3,2.5769]
[1735561853419,12.71478309,194.37,194.31,3.97251833]
[1735561853615,12.71478309,194.37,194.27,10.03910368]
[1735561853819,12.71478309,194.37,194.28,3.97261286]
[1735561854020,12.71478309,194.37,194.29,3.97261286]
[1735561854321,12.71478309,194.37,194.3,3.97261286]
[1735561854520,12.71478309,194.37,194.27,7.01910368]
[1735561854720,12.71478309,194.37,194.28,3.97073986]
[1735561854917,12.71478309,194.37,194.29,3.97073986]
[1735561855111,12.71478309,194.37,194.3,6.54773986]
[1735561855312,12.71478309,194.37,194.26,6.0816]
[1735561855513,12.71478309,194.37,194.27,3.96867831]
[1735561855713,12.71478309,194.37,194.28,3.96867831]
[1735561855919,12.71478309,194.37,194.29,3.96867831]
[1735561856224,12.71478309,194.37,194.26,6.0816]
[1735561856524,12.71478309,194.37,194.29,2.5771]
[1735561857422,12.71478309,194.37,194.28,2.5773]
[1735561858025,12.71478309,194.37,194.3,2.577]
[1735561858720,12.71478309,194.37,194.29,2.5772]
[1735561859118,12.71478309,194.34,194.26,3.0616]
[1735561859332,12.71478309,194.34,194.27,2.5774]
[1735561860228,12.71478309,194.34,194.25,5.5977]
[1735561860530,12.71478309,194.34,194.21,12.71478309]
[1735561860531,12.71478309,194.34,194.22,3.02]
[1735561860826,12.71478309,194.34,194.27,2.5774]
[1735561861026,12.71478309,194.34,194.22,3.02]
[1735561861227,12.71478309,194.34,194.24,3.96111373]
[1735561861428,12.71478309,194.34,194.25,3.96111373]
[1735561861721,12.71478309,194.34,194.22,3.02]
[1735561861722,12.71478309,194.37,194.26,3.96111373]
[1735561861924,12.71478309,194.37,194.27,10.02851373]
[1735561862128,12.71478309,194.37,194.28,3.96111373]
[1735561862324,12.71478309,194.37,194.29,3.96111373]
[1735561862524,12.71478309,194.37,194.3,3.95665451]
[1735561862827,12.71478309,194.37,194.34,2.5764]
[1735561863928,12.71478309,194.4,194.34,2.5764]
[1735561865423,12.71478309,194.4,194.28,3.95394404]
[1735561865624,12.71478309,194.4,194.29,3.95410876]
[1735561865930,12.71478309,194.43,194.3,16.66855051]
[1735561866125,12.71478309,194.43,194.31,5.41736742]
[1735561866429,12.71478309,194.43,194.32,6.97376742]
[1735561866629,12.71478309,194.43,194.33,3.95376742]
[1735561866934,12.71478309,194.43,194.38,2.5759]
[1735561867123,12.71478309,194.46,194.35,3.95260383]
[1735561867328,12.71478309,194.46,194.36,3.95260383]
[1735561867530,12.71478309,194.46,194.37,3.95260383]
[1735561867730,12.71478309,194.46,194.37,3.02]
[1735561867926,4.4994,194.49,194.38,3.95194055]
[1735561867927,1.464,194.49,194.38,3.95194055]
[1735561868127,1.464,194.49,194.39,5.41554055]
[1735561868328,1.464,194.49,194.4,3.95194055]
[1735561868531,1.464,194.49,194.39,1.4636]
[1735561868729,1.464,194.49,194.43,2.5752]
[1735561869030,1.464,194.49,194.4,3.95222336]
[1735561869031,12.71478309,194.5,194.41,3.9519665]
[1735561869232,12.71478309,194.5,194.45,2.575]
[1735561869435,12.71478309,194.5,194.42,3.02]
[1735561869732,12.71478309,194.5,194.43,3.95189335]
[1735561869932,12.71478309,194.5,194.45,2.5749]
[1735561870333,3.02,194.52,194.47,2.5747]
[1735561870531,3.02,194.52,194.43,3.95254253]
[1735561870732,3.02,194.52,194.44,3.95276376]
[1735561870934,12.71478309,194.53,194.42,15.73478309]
[1735561871126,12.71478309,194.53,194.47,2.5746]
[1735561871328,12.71478309,194.53,194.42,15.73478309]
[1735561871529,12.71478309,194.53,194.43,3.9544901]
[1735561871728,12.71478309,194.53,194.44,3.9544901]
[1735561871929,12.71478309,194.53,194.48,2.5746]
[1735561872137,12.71478309,194.53,194.42,15.73478309]